fUST/lending_fUST_20250421
["ID","MTS","AMOUNT","RATE_DAILY","PERIOD"]
[358528150,1745235045025,-1500.0,0.00037871,5]
[358528152,1745235045035,-1610.83560204,0.00037871,5]
[358528153,1745235045044,-1500.0,0.00037871,5]
[358528155,1745235045053,-1500.0,0.00037871,5]
[358528157,1745235045062,-1500.0,0.00037871,5]
[358528159,1745235045071,-200.0,0.00038,33]
[358528161,1745235045080,-300.0,0.00038,120]
[358528163,1745235045090,-200.0,0.00038,33]
[358528165,1745235045099,-200.0,0.00038,33]
[358528167,1745235045108,-200.0,0.00038,33]
[358528169,1745235045118,-1500.0,0.00038026,5]
[358528171,1745235045129,-1500.0,0.00038026,5]
[358528173,1745235045138,-507.11373466,0.00038356,90]
[358528175,1745235045147,-1034.329273,0.00038356,2]
[358528177,1745235045157,-200.0,0.00038356,5]
[358528179,1745235045167,-25713.9229918,0.00038356,5]
[358528181,1745235045176,-805.32897269,0.00038358,2]
[358528183,1745235045186,-269.99682,0.000384,120]
[358528185,1745235045197,-211.21953,0.000384,120]
[358528187,1745235045207,-3794.09769259,0.00038452,14]
[358528189,1745235045215,-200.0,0.00039,37]
[358528191,1745235045225,-167.36782385,0.00039,120]
[358528193,1745235045234,-271.5400069,0.00039,7]
[358528195,1745235045243,-366.23054461,0.00039,2]
[358528197,1745235045253,-250.5,0.00039,37]
[358528199,1745235045262,-200.0,0.00039,37]
[358528201,1745235045272,-250.5,0.00039,37]
[358528203,1745235045282,-268.0,0.00039,2]
[358528205,1745235045291,-268.0,0.00039,2]
[358528207,1745235045300,-268.0,0.00039,2]
[358528209,1745235045310,-4427.0,0.0003918,5]
[358528211,1745235045319,-701.83215417,0.000392,120]
[358528213,1745235045329,-650.0,0.00039271,5]
[358528215,1745235045339,-3794.09769259,0.00039383,15]
[358528217,1745235045348,-688.09424295,0.000395,30]
[358528219,1745235045357,-1894.25527078,0.00039726,4]
[358528221,1745235045367,-314.39169185,0.000399,3]
[358528223,1745235045377,-259762.1703005,0.000399,5]
[358528225,1745235045386,-28105.83534024,0.000399,30]
[358528227,1745235045396,-27068.89889602,0.000399,120]
[358528229,1745235045405,-151.0,0.000399,14]
[358528231,1745235045414,-151.0,0.000399,14]
[358528233,1745235045426,-151.0,0.000399,14]
[358528235,1745235045435,-151.0,0.000399,14]
[358528237,1745235045445,-151.0,0.000399,14]
[358528239,1745235045454,-151.0,0.000399,14]
[358528241,1745235045463,-151.0,0.000399,14]
[358528243,1745235045474,-151.0,0.000399,14]
[358528245,1745235045483,-151.0,0.000399,14]
[358528247,1745235045492,-151.0,0.000399,14]
[358528249,1745235045502,-272.376686,0.000399,14]
[358528251,1745235045512,-151.0,0.000399,14]
[358528253,1745235045522,-487.080976,0.000399,2]
[358528255,1745235045531,-487.080976,0.000399,2]
[358528257,1745235045540,-716.081707,0.000399,14]
[358528259,1745235045551,-716.081707,0.000399,14]
[358528261,1745235045561,-292.720156,0.000399,14]
[358528263,1745235045570,-151.0,0.000399,14]
[358528265,1745235045579,-7062.41020747,0.0004,2]
[358528267,1745235045588,-4750.86135526,0.0004,3]
[358528269,1745235045598,-10001.64204541,0.0004,2]
[358528271,1745235045607,-1000.0,0.0004,2]
[358528273,1745235045616,-902.04307347,0.0004,2]
[358528275,1745235045626,-500.0,0.0004,20]
[358528277,1745235045636,-2628.0,0.0004,5]
[358528279,1745235045645,-500.0,0.0004,15]
[358528281,1745235045654,-420.67559906,0.0004,2]
[358528283,1745235045663,-312.67562795,0.0004,10]
[358528285,1745235045673,-420.40766787,0.0004,10]
[358528287,1745235045682,-200.0,0.0004,120]
[358528289,1745235045691,-213.42749637,0.0004,120]
[358528291,1745235045700,-197.38496895,0.0004,14]
[358528293,1745235045709,-1610.43570002,0.0004,120]
[358528295,1745235045719,-250.5,0.0004,41]
[358528297,1745235045727,-396.91406183,0.0004,120]
[358528300,1745235045737,-153.06275597,0.0004,30]
[358528302,1745235045746,-268.12818417,0.0004,120]
[358528305,1745235045755,-502.58,0.0004,120]
[358528307,1745235045764,-300.0,0.0004,120]
[358528309,1745235045773,-5558.28276693,0.0004,4]
[358528311,1745235045783,-738.1325158,0.0004,120]
[358528313,1745235045792,-3757.3355441,0.0004,120]
[358528324,1745235045870,-956.62639414,0.00021559,2]
[358528326,1745235045882,-1823.87798732,0.00021559,2]
[358528328,1745235045893,-1626.53977523,0.00021559,2]
[358528343,1745235046016,-16.14670281,0.00021559,2]
[358528345,1745235046027,-576.8091405,0.00021559,2]
[358528347,1745235046037,-249.0,0.00028767,2]
[358528349,1745235046046,-151.0,0.00028953,7]
[358528351,1745235046056,-255.0,0.00030205,2]
[358528353,1745235046065,-249.0,0.00032219,2]
[358528355,1745235046074,-249.0,0.00034233,2]
[358528357,1745235046083,-249.0,0.00034521,2]
[358528359,1745235046092,-230.72648031,0.00036247,2]
[358528361,1745235046103,-18.27351969,0.00036247,2]
[358528363,1745235046113,-437.89125974,0.0004,120]
[358528373,1745235046198,-151.0,0.00029,7]
[358528375,1745235046207,-151.0,0.00029,7]
[358528377,1745235046217,-151.0,0.0003,7]
[358528379,1745235046226,-151.0,0.00033796,14]
[358528381,1745235046236,-151.0,0.000357,14]
[358528383,1745235046246,-459.52908192,0.0004,120]
[358528385,1745235046255,-214.33514975,0.0004,30]
[358528387,1745235046265,-12424.06,0.0004,30]
[358528389,1745235046274,-3218.87,0.0004,30]
[358528391,1745235046283,-87617.40543332,0.0004,30]
[358528394,1745235046294,-998.46009272,0.0004,30]
[358528396,1745235046306,-258.71379173,0.0004,30]
[358528415,1745235046509,-207.16661669,0.00036432,2]
[358528417,1745235046518,-207.16661669,0.00036798,2]
[358528419,1745235046527,-151.0,0.000399,14]
[358528421,1745235046537,-4917.53891609,0.0004,30]
[358528428,1745235046596,-3369.15,0.0004,30]
[358529511,1745235114135,-227.63796229,0.000159,2]
[358529512,1745235122509,-500.0,0.00021917,2]
[358529513,1745235122534,-65.0,0.00022528,2]
[358529514,1745235188507,-500.0,0.00021917,2]
[358529515,1745235188532,-500.0,0.00021917,2]
[358529516,1745235188557,-185.692878,0.00021933,2]
[358529517,1745235188580,-500.0,0.00022191,2]
[358529518,1745235188602,-500.0,0.00022465,2]
[358529519,1745235188624,-159.03593764,0.00022528,2]
[358529520,1745235188650,-160.0,0.00022622,2]
[358529521,1745235188673,-420.65680271,0.00022622,2]
[358529522,1745235188696,-500.0,0.00022739,2]
[358529523,1745235188719,-500.0,0.00023013,2]
[358529524,1745235188742,-500.0,0.00023287,2]
[358529525,1745235188767,-300.0,0.0002356,2]
[358529526,1745235188791,-192.61438165,0.00023561,2]
[358529541,1745236232400,-552.3879779,0.00019805,2]
[358529543,1745236232411,-3486.31461319,0.0002041,4]
[358529545,1745236232420,-300.0,0.00020787,2]
[358529547,1745236232430,-24900.0,0.00020788,2]
[358529549,1745236232440,-1269.87277241,0.00020823,2]
[358529551,1745236232449,-4336.7928544,0.00020824,2]
[358529553,1745236232459,-152.0,0.00021411,2]
[358529556,1745236232469,-250.0,0.0002155,2]
[358529558,1745236232478,-510.12924503,0.0002169,2]
[358529559,1745236232488,-160.0,0.0002178,2]
[358529560,1745236232497,-156.82,0.00021782,2]
[358529561,1745236232507,-729.16666667,0.00021787,2]
[358529563,1745236232517,-420.65680271,0.00021789,2]
[358529565,1745236232526,-300.0,0.0002179,2]
[358529567,1745236232536,-31257.02005948,0.00021791,2]
[358529570,1745236232546,-160.0,0.00021791,2]
[358529572,1745236232556,-1000.0,0.00021817,2]
[358529574,1745236232567,-250.0,0.00021817,2]
[358529577,1745236232576,-500.0,0.00021873,2]
[358529579,1745236232585,-500.0,0.00021873,2]
[358529581,1745236232595,-160.0,0.00021873,2]
[358529583,1745236232604,-151.0,0.0002188,2]
[358529585,1745236232613,-13183.9912549,0.00021894,2]
[358529587,1745236232623,-2149.98869269,0.000219,3]
[358529589,1745236232632,-500.0,0.00021917,2]
[358529591,1745236232641,-500.0,0.00021917,2]
[358529593,1745236232650,-500.0,0.00022191,2]
[358529595,1745236232660,-500.0,0.00022465,2]
[358529597,1745236232669,-2149.98869246,0.00022728,4]
[358529598,1745236232678,-500.0,0.00022739,2]
[358529599,1745236232687,-151.61644003,0.000229,2]
[358529600,1745236232696,-500.0,0.00023013,2]
[358529601,1745236232705,-152.81425118,0.00023249,2]
[358529602,1745236232715,-500.0,0.00023287,2]
[358529603,1745236232724,-2149.98869246,0.00023555,4]
[358529604,1745236232734,-607.38561835,0.00023561,2]
[358529605,1745236232743,-420.0,0.00023795,2]
[358529606,1745236232753,-2149.98869246,0.00024383,5]
[358529607,1745236232762,-200.0,0.00024658,15]
[358529608,1745236232771,-152.5739969,0.00025,2]
[358529609,1745236232781,-1981.259204,0.00025,5]
[358529610,1745236232791,-899.09,0.00025,2]
[358529611,1745236232803,-510.12924497,0.00025009,2]
[358529612,1745236232813,-2149.98869246,0.0002521,5]
[358529613,1745236232822,-587.0,0.00025985,2]
[358529614,1745236232831,-2149.98869246,0.00026038,6]
[358529615,1745236232842,-500.0,0.00026629,2]
[358529616,1745236232854,-500.0,0.00026629,2]
[358529617,1745236232863,-2149.98869246,0.00026866,7]
[358529618,1745236232873,-152.0,0.00027,2]
[358529619,1745236232883,-200.0,0.00027,2]
[358529620,1745236232892,-1000.0,0.00027352,2]
[358529621,1745236232901,-1000.0,0.00027352,2]
[358529622,1745236232910,-404.624214,0.00027397,120]
[358529623,1745236232919,-500.0,0.000274,5]
[358529624,1745236232929,-500.0,0.000274,5]
[358529625,1745236232939,-500.0,0.000274,5]
[358529626,1745236232948,-500.0,0.000274,5]
[358529627,1745236232957,-300.0,0.000274,5]
[358529628,1745236232967,-2149.98869246,0.00027693,7]
[358529629,1745236232976,-160.0,0.00028,10]
[358529630,1745236232986,-510.12924497,0.00028327,2]
[358529631,1745236232995,-823.0,0.00028376,2]
[358529632,1745236233004,-26.71369362,0.00028421,2]
[358529633,1745236233017,-185.36544696,0.00028421,2]
[358529634,1745236233026,-139.57362923,0.00028521,8]
[358529635,1745236233038,-2010.41506323,0.00028521,8]
[358529636,1745236233047,-1038.05403894,0.00028667,2]
[358529637,1745236233057,-535.78728476,0.00028737,2]
[358529638,1745236233067,-183.81422658,0.00028737,2]
[358529639,1745236233076,-500.0,0.00028737,2]
[358529640,1745236233086,-189.1219482,0.00028737,2]
[358529641,1745236233095,-500.0,0.00028737,2]
[358529642,1745236233105,-500.0,0.00028737,2]
[358529643,1745236233115,-500.0,0.00028737,2]
[358529644,1745236233124,-500.0,0.00028737,2]
[358529645,1745236233134,-500.0,0.00028737,2]
[358529646,1745236233144,-500.0,0.00028737,2]
[358529647,1745236233153,-500.0,0.00028737,2]
[358529648,1745236233163,-500.0,0.00028737,2]
[358529649,1745236233173,-555.28931115,0.00028737,2]
[358529650,1745236233182,-500.0,0.00028737,2]
[358529651,1745236233192,-500.0,0.00028737,2]
[358529652,1745236233201,-500.0,0.00028737,2]
[358529653,1745236233210,-500.0,0.00028737,2]
[358529654,1745236233220,-500.0,0.00028737,2]
[358529655,1745236233229,-500.0,0.00028737,2]
[358529656,1745236233239,-500.0,0.00028737,2]
[358529657,1745236233248,-17993.30818061,0.00028738,2]
[358529665,1745236238601,-160.0,0.0002178,2]
[358529667,1745236238611,-231805.11333039,0.00028738,2]
[358529669,1745236238620,-152.0,0.00028767,2]
[358529671,1745236238630,-500.0,0.00028773,4]
[358529673,1745236238639,-500.0,0.00028773,5]
[358529675,1745236238649,-500.0,0.00028773,2]
[358529677,1745236238658,-160.0,0.00029,10]
[358529679,1745236238667,-784.0,0.00029,2]
[358529681,1745236238677,-1290.0,0.00029,2]
[358529683,1745236238687,-4720.20235872,0.00029,7]
[358529685,1745236238696,-4720.20235872,0.00029,7]
[358529687,1745236238706,-600.0,0.00029044,5]
[358529689,1745236238715,-2149.98869246,0.00029348,8]
[358529691,1745236238725,-200.0,0.000299,120]
[358529693,1745236238735,-200.0,0.000299,120]
[358529695,1745236238746,-200.0,0.0003,2]
[358529697,1745236238756,-223.0,0.0003,2]
[358529699,1745236238765,-2149.98869246,0.00030176,9]
[358529701,1745236238775,-170.52731341,0.00030205,25]
[358529703,1745236238784,-900.0,0.00030688,5]
[358529705,1745236238794,-500.0,0.00030973,5]
[358529708,1745236238809,-500.0,0.00030973,5]
[358529711,1745236238818,-249798.421511,0.00030976,2]
[358529713,1745236238827,-1152.0,0.00030986,2]
[358529715,1745236238837,-200.0,0.00031,6]
[358529717,1745236238847,-2149.98869246,0.00031003,9]
[358529719,1745236238856,-153.0,0.00031358,2]
[358529721,1745236238865,-153.0,0.00031358,2]
[358529723,1745236238875,-153.0,0.00031358,2]
[358529725,1745236238884,-153.0,0.0003136,2]
[358529726,1745236238893,-153.0,0.0003136,2]
[358529728,1745236238902,-153.0,0.0003136,2]
[358529730,1745236238911,-153.0,0.0003136,2]
[358529732,1745236238921,-153.0,0.0003136,2]
[358529734,1745236238930,-153.0,0.00031371,2]
[358529737,1745236238939,-153.0,0.00031371,2]
[358529739,1745236238949,-153.0,0.00031372,2]
[358529741,1745236238958,-153.0,0.00031372,2]
[358529743,1745236238968,-153.0,0.00031372,2]
[358529745,1745236238977,-153.0,0.00031372,2]
[358529747,1745236238986,-153.0,0.00031372,2]
[358529749,1745236238995,-1000.0,0.00031512,4]
[358529751,1745236239004,-200.0,0.000316,120]
[358529753,1745236239014,-200.0,0.000316,120]
[358529755,1745236239023,-510.12924497,0.00031646,2]
[358529757,1745236239033,-500.0,0.00031675,5]
[358529759,1745236239043,-500.0,0.00031675,5]
[358529761,1745236239052,-500.0,0.00031675,5]
[358529763,1745236239061,-500.0,0.00031675,5]
[358529765,1745236239071,-500.0,0.00031675,5]
[358529767,1745236239079,-500.0,0.00031675,5]
[358529769,1745236239088,-2149.98869246,0.00031831,10]
[358529771,1745236239098,-404.624214,0.00031963,120]
[358529773,1745236239107,-300.95,0.00032,10]
[358529775,1745236239116,-1000.0,0.00032108,5]
[358529777,1745236239127,-1000.0,0.00032108,5]
[358529779,1745236239137,-1200.0,0.00032332,5]
[358529781,1745236239146,-2149.98869246,0.00032659,10]
[358529783,1745236239155,-500.0,0.00032877,2]
[358529785,1745236239164,-500.0,0.00032877,2]
[358529787,1745236239174,-1000.0,0.00032879,5]
[358529789,1745236239183,-1000.0,0.00032879,5]
[358529791,1745236239192,-1000.0,0.00032879,5]
[358529793,1745236239202,-185.692878,0.00032899,2]
[358529795,1745236239212,-11181.66,0.000329,30]
[358529797,1745236239221,-2896.98,0.000329,30]
[358529799,1745236239231,-2697.27,0.000329,7]
[358529802,1745236239240,-223.0,0.00033,2]
[358529804,1745236239249,-223.0,0.00033,2]
[358529806,1745236239259,-200.0,0.000333,120]
[358529808,1745236239269,-200.0,0.000333,120]
[358529810,1745236239278,-2149.98869246,0.00033486,11]
[358529812,1745236239288,-1613.0,0.00033838,3]
[358529814,1745236239297,-1500.0,0.00033975,5]
[358529816,1745236239307,-1500.0,0.00034252,4]
[358529818,1745236239316,-1110.83560204,0.00034252,5]
[358529820,1745236239326,-2149.98869246,0.00034314,11]
[358529822,1745236239335,-510.12924497,0.00034964,2]
[358529824,1745236239345,-200.0,0.00035,120]
[358529826,1745236239354,-200.0,0.00035,120]
[358529828,1745236239363,-2149.98869246,0.00035141,12]
[358529830,1745236239373,-500.0,0.00035616,7]
[358529832,1745236239383,-179.51409327,0.00035616,7]
[358529834,1745236239392,-1800.0,0.00035619,5]
[358529836,1745236239402,-2149.98869246,0.00035969,12]
[358529838,1745236239411,-2000.91,0.00035989,2]
[358529840,1745236239421,-2000.91,0.00035989,2]
[358529842,1745236239431,-2000.91,0.00035989,2]
[358529844,1745236239440,-2000.91,0.00035989,2]
[358529846,1745236239449,-2000.91,0.00035989,2]
[358529848,1745236239459,-2000.91,0.00035989,2]
[358529850,1745236239468,-2000.91,0.00035989,2]
[358529852,1745236239477,-2000.91,0.00035989,2]
[358529854,1745236239486,-2000.93,0.00035989,2]
[358529856,1745236239495,-2000.94,0.00035989,2]
[358529858,1745236239505,-249798.421511,0.0003599,3]
[358529860,1745236239515,-420.65680271,0.0003599,3]
[358529862,1745236239524,-11181.66,0.00036,30]
[358529864,1745236239534,-223.0,0.00036,2]
[358529867,1745236239544,-223.0,0.00036,2]
[358529869,1745236239554,-223.0,0.00036,2]
[358529871,1745236239563,-695.65765304,0.000362,120]
[358529873,1745236239573,-695.65765303,0.000362,120]
[358529875,1745236239582,-695.65765303,0.000362,120]
[358529877,1745236239592,-2896.98,0.000362,30]
[358529879,1745236239605,-626.80554268,0.0003635,5]
[358529881,1745236239614,-500.0,0.0003635,5]
[358529883,1745236239623,-500.0,0.00036452,5]
[358529885,1745236239632,-1000.0,0.00036452,5]
[358529887,1745236239641,-404.624214,0.0003653,120]
[358529889,1745236239651,-200.0,0.000367,120]
[358529891,1745236239660,-2149.98869246,0.00036797,13]
[358529893,1745236239671,-2258.0,0.00036951,3]
[358529895,1745236239681,-1394.25527078,0.00036992,4]
[358529897,1745236239690,-312.84021666,0.000371,30]
[358529899,1745236239699,-517.14731367,0.00037154,5]
[358529901,1745236239709,-457.323273,0.00037154,5]
[358529903,1745236239718,-1000.0,0.00037154,5]
[358529905,1745236239727,-1000.0,0.00037154,5]
[358529907,1745236239736,-1000.0,0.00037154,5]
[358529909,1745236239745,-1000.0,0.00037154,5]
[358529911,1745236239755,-2100.0,0.00037263,5]
[358529913,1745236239764,-1500.0,0.00037371,5]
[358529915,1745236239773,-1500.0,0.00037371,5]
[358529917,1745236239782,-2149.98869246,0.00037624,14]
[358529919,1745236239791,-1166.5869726,0.00038,4]
[358529921,1745236239805,-500.0,0.00038,5]
[358529923,1745236239814,-500.0,0.00038,5]
[358529925,1745236239823,-212.07914058,0.000382,2]
[358529927,1745236239833,-510.12924497,0.00038283,2]
[358529929,1745236239843,-11181.66,0.000383,30]
[358529932,1745236239852,-507.11373466,0.00038356,90]
[358529934,1745236239862,-200.0,0.00038356,5]
[358529936,1745236239873,-25713.9229918,0.00038356,5]
[358529938,1745236239883,-2896.98,0.000384,30]
[358529940,1745236239892,-200.0,0.000384,120]
[358529942,1745236239902,-2149.98869246,0.00038452,14]
[358529944,1745236239911,-250.0,0.00038712,5]
[358529946,1745236239921,-686.26552735,0.00038907,5]
[358529948,1745236239931,-695.65765303,0.00038942,120]
[358529950,1745236239940,-223.0,0.00039,2]
[358529952,1745236239950,-223.0,0.00039,2]
[358529954,1745236239960,-223.0,0.00039,2]
[358529956,1745236239969,-701.83215417,0.000392,120]
[358529958,1745236239979,-2213.81335208,0.000392,120]
[358529960,1745236239988,-2149.98869246,0.00039279,15]
[358529962,1745236239998,-729.16666667,0.0003989,3]
[358529965,1745236240007,-160.0,0.0003989,3]
[358529967,1745236240017,-27074.89889602,0.000399,120]
[358529969,1745236240026,-160.0,0.000399,120]
[358529971,1745236240036,-160.0,0.000399,120]
[358529973,1745236240046,-140967.12953899,0.000399,5]
[358529976,1745236240060,-536.9764501,0.000399,5]
[358530622,1745236246664,-402.0,0.00024165,2]
[358530624,1745236246673,-200.0,0.000367,120]
[358530626,1745236246682,-301.24256,0.000384,120]
[358530628,1745236246692,-224.0,0.000399,2]
[358530630,1745236246702,-2995.80881828,0.000399,5]
[358530632,1745236246713,-14749.9999995,0.000399,5]
[358530635,1745236246726,-5389.49321058,0.000399,5]
[358530639,1745236246761,-21423.16790653,0.000399,5]
[358530916,1745236276124,389.08,0.00025,30]
[358530929,1745236778941,10000.0,0.00025,30]
[358530932,1745236960548,10000.0,0.00025,30]
[358530934,1745237026277,4000.3,0.00025,30]
[358530992,1745237432636,-707.27615835,0.0002031,2]
[358530994,1745237432646,-160.0,0.00021864,2]
[358530996,1745237432656,-420.65680271,0.00021864,2]
[358530997,1745237432665,-729.16666667,0.00021864,2]
[358530998,1745237432674,-160.0,0.00021866,2]
[358530999,1745237432684,-160.0,0.00021866,2]
[358531000,1745237432693,-300.0,0.00021916,2]
[358531001,1745237432703,-156.83,0.00021917,2]
[358531002,1745237432712,-500.0,0.00021917,2]
[358531003,1745237432722,-500.0,0.00021917,2]
[358531004,1745237432731,-631.47857603,0.00021917,2]
[358531005,1745237432740,-500.0,0.00021917,2]
[358531006,1745237432749,-500.0,0.00021917,2]
[358531007,1745237432759,-500.0,0.00021917,2]
[358531008,1745237432768,-500.0,0.00021917,2]
[358531009,1745237432777,-500.0,0.00021917,2]
[358531011,1745237432787,-500.0,0.00021917,2]
[358531012,1745237432796,-500.0,0.00021917,2]
[358531013,1745237432806,-500.0,0.00021917,2]
[358531015,1745237432815,-500.0,0.00021917,2]
[358531016,1745237432824,-500.0,0.00021917,2]
[358531017,1745237432834,-500.0,0.00022,2]
[358531018,1745237432843,-500.0,0.00022403,2]
[358531019,1745237432853,-23554.67794,0.00022753,2]
[358531020,1745237432862,-486.64027644,0.000228,2]
[358531021,1745237432872,-198.59325042,0.000229,2]
[358531022,1745237432881,-1757.93193103,0.000229,4]
[358531023,1745237432891,-500.0,0.00023582,2]
[358531025,1745237432901,-1757.93193089,0.00023693,4]
[358531027,1745237432910,-420.0,0.00023929,2]
[358531029,1745237432920,-300.0,0.00023967,2]
[358531031,1745237432929,-500.0,0.00023967,2]
[358531033,1745237432938,-500.0,0.00023967,2]
[358531034,1745237432948,-500.0,0.00023967,2]
[358531035,1745237432963,-1757.93193089,0.00024486,5]
[358531036,1745237432972,-200.0,0.00024658,15]
[358531037,1745237432981,-273.765942,0.00024789,2]
[358531038,1745237432991,-200.0,0.000248,2]
[358531039,1745237433001,-500.0,0.00024823,2]
[358531040,1745237433010,-809.18,0.00025,2]
[358531041,1745237433019,-1757.93193089,0.00025279,5]
[358531042,1745237433029,-500.0,0.00025416,2]
[358531043,1745237433039,-500.0,0.00025416,2]
[358531044,1745237433048,-500.0,0.00025416,2]
[358531045,1745237433058,-500.0,0.00025416,2]
[358531046,1745237433068,-500.0,0.00025416,2]
[358531047,1745237433077,-500.0,0.00025416,2]
[358531048,1745237433087,-500.0,0.00025416,2]
[358531049,1745237433097,-500.0,0.00025416,2]
[358531050,1745237433107,-500.0,0.00025416,2]
[358531051,1745237433116,-500.0,0.00025416,2]
[358531052,1745237433126,-500.0,0.00025416,2]
[358531053,1745237433136,-525.33668489,0.00025416,2]
[358531054,1745237433145,-500.0,0.00025416,2]
[358531055,1745237433155,-500.0,0.00025416,2]
[358531056,1745237433170,-503.62732216,0.00025416,2]
[358531057,1745237433180,-500.0,0.00025416,2]
[358531058,1745237433190,-500.0,0.00025416,2]
[358531059,1745237433200,-500.0,0.00025416,2]
[358531060,1745237433211,-500.0,0.00025416,2]
[358531061,1745237433221,-355.00430679,0.00025416,2]
[358531062,1745237433231,-500.0,0.00025416,2]
[358531063,1745237433243,-500.0,0.00025416,2]
[358531064,1745237433252,-500.0,0.00025416,2]
[358531065,1745237433262,-500.0,0.00025416,2]
[358531066,1745237433271,-531.61678222,0.00025416,2]
[358531067,1745237433281,-500.0,0.00025416,2]
[358531068,1745237433291,-577.41239345,0.00025416,2]
[358531069,1745237433300,-500.0,0.00025416,2]
[358531070,1745237433310,-482.11598701,0.00025416,2]
[358531071,1745237433319,-500.0,0.00025416,2]
[358531072,1745237433328,-600.0,0.00025611,2]
[358531073,1745237433338,-200.0,0.000258,2]
[358531074,1745237433347,-486.64027644,0.00025967,2]
[358531075,1745237433356,-1757.93193089,0.00026072,6]
[358531076,1745237433366,-587.0,0.00026128,2]
[358531077,1745237433376,-500.0,0.0002613,2]
[358531078,1745237433385,-200.0,0.000268,2]
[358531079,1745237433395,-1757.93193089,0.00026866,7]
[358531080,1745237433405,-312.84021666,0.00027,3]
[358531081,1745237433415,-312.84021666,0.00027,3]
[358531082,1745237433424,-900.0,0.00027254,2]
[358531083,1745237433435,-303.468161,0.00027397,120]
[358531084,1745237433445,-171.997,0.00027434,2]
[358531085,1745237433456,-500.0,0.00027455,2]
[358531086,1745237433466,-529.63005466,0.00027479,5]
[358531087,1745237433476,-500.0,0.00027505,5]
[358531088,1745237433485,-500.0,0.00027592,2]
[358531089,1745237433495,-1757.93193089,0.00027659,7]
[358531090,1745237433505,-500.0,0.00027671,5]
[358531091,1745237433514,-500.0,0.00027671,5]
[358531092,1745237433524,-500.0,0.00027671,5]
[358531093,1745237433533,-500.0,0.00027671,5]
[358531094,1745237433543,-500.0,0.00027671,5]
[358531095,1745237433552,-500.0,0.00027671,2]
[358531096,1745237433562,-500.0,0.00027671,4]
[358531097,1745237433572,-500.0,0.00027671,5]
[358531098,1745237433581,-500.0,0.00027729,2]
[358531099,1745237433592,-200.0,0.000278,2]
[358531100,1745237433602,-500.0,0.00027866,2]
[358531101,1745237433612,-198.59325042,0.000279,2]
[358531102,1745237433621,-500.0,0.00028003,2]
[358531103,1745237433631,-500.0,0.0002814,2]
[358531104,1745237433641,-500.0,0.00028277,2]
[358531105,1745237433651,-500.0,0.00028414,2]
[358531106,1745237433661,-1757.93193089,0.00028452,8]
[358531107,1745237433671,-823.0,0.00028528,2]
[358531108,1745237433680,-500.0,0.00028551,2]
[358531109,1745237433690,-500.0,0.00028688,2]
[358531110,1745237433701,-1038.05403894,0.0002878,2]
[358531111,1745237433712,-212.07914058,0.0002878,2]
[358531112,1745237433722,-200.0,0.000288,2]
[358531113,1745237433732,-500.0,0.00028825,2]
[358531114,1745237433742,-500.0,0.00028869,2]
[358531115,1745237433752,-570.12737124,0.00028869,2]
[358531116,1745237433762,-582.88705755,0.00028869,2]
[358531117,1745237433772,-14595.50643427,0.0002887,2]